bitfinex/quotes_BTCUSD_20250825
["timestamp","ask_amount","ask_price","bid_price","bid_amount"]
[1756152603902,0.44810117,110710.0,110700.0,0.03547743]
[1756152604131,5.80961627,110710.0,110700.0,0.03547743]
[1756152604361,5.67017682,110710.0,110700.0,0.03547743]
[1756152604581,6.75904404,110710.0,110700.0,0.03547743]
[1756152604854,5.98664725,110710.0,110700.0,0.03547743]
[1756152605070,5.76158161,110710.0,110700.0,0.03547743]
[1756152605292,5.86158161,110710.0,110700.0,0.03551743]
[1756152605511,5.65955063,110710.0,110700.0,0.03555743]
[1756152605732,5.65955063,110710.0,110700.0,0.03559743]
[1756152605733,5.82059374,110710.0,110700.0,0.03559743]
[1756152605952,5.65314472,110710.0,110700.0,0.03559743]
[1756152606171,5.70105472,110710.0,110700.0,0.03567743]
[1756152606393,5.69498526,110710.0,110700.0,0.03571743]
[1756152606617,5.83619367,110710.0,110700.0,0.02037129]
[1756152606841,0.67066847,110700.0,110690.0,0.00029253]
[1756152607063,5.68687688,110700.0,110690.0,0.00029253]
[1756152607292,5.79206688,110700.0,110690.0,0.00029253]
[1756152607508,5.97365847,110700.0,110690.0,0.00029253]
[1756152607725,5.89004531,110700.0,110690.0,0.00029253]
[1756152607957,6.03157467,110700.0,110690.0,0.00029253]
[1756152608174,6.08537278,110700.0,110690.0,0.00029253]
[1756152608394,5.9320098,110700.0,110690.0,0.00029253]
[1756152608654,6.22748023,110700.0,110690.0,0.00029253]
[1756152608876,1.25596799,110700.0,110690.0,0.00029253]
[1756152609096,1.29393334,110700.0,110690.0,0.00033253]
[1756152609317,1.29390484,110700.0,110690.0,0.00037253]
[1756152609551,1.29385422,110700.0,110690.0,0.00041253]
[1756152609785,0.91315014,110680.0,110660.0,0.20021032]
[1756152610033,4.02714344,110670.0,110660.0,0.20021032]
[1756152610270,4.24537966,110670.0,110660.0,0.20021032]
[1756152610603,4.24525966,110670.0,110660.0,0.20021032]
[1756152610772,4.06050891,110670.0,110660.0,0.20021032]
[1756152610999,4.25962891,110670.0,110660.0,0.20021032]
[1756152611228,4.28541745,110670.0,110660.0,0.20021032]
[1756152611463,4.44927695,110670.0,110660.0,0.20021032]
[1756152611929,4.26308786,110670.0,110660.0,0.20021032]
[1756152612185,4.26308786,110670.0,110660.0,0.20025032]
[1756152612414,0.68818279,110660.0,110650.0,4e-05]
[1756152612654,0.75681338,110660.0,110650.0,4e-05]
[1756152612895,0.73337004,110660.0,110650.0,4e-05]
[1756152613131,0.70536047,110660.0,110650.0,4e-05]
[1756152613348,0.70536047,110660.0,110610.0,0.20134972]
[1756152613349,0.35744902,110640.0,110610.0,0.20134972]
[1756152613574,0.64034385,110640.0,110610.0,0.20134972]
[1756152614045,0.5382318,110630.0,110610.0,0.20134972]
[1756152614274,0.53824815,110620.0,110610.0,0.20009972]
[1756152614487,0.53824815,110620.0,110610.0,0.27230514]
[1756152614488,3.80851683,110620.0,110610.0,0.27230514]
[1756152614738,3.72154781,110620.0,110610.0,0.27230514]
[1756152614960,3.70547013,110620.0,110610.0,0.27555514]
[1756152615180,3.71962444,110620.0,110610.0,0.27555514]
[1756152615406,0.01415431,110620.0,110610.0,0.75379514]
[1756152615895,0.69543104,110620.0,110610.0,0.55055514]
[1756152616133,3.21685204,110620.0,110610.0,0.50055514]
[1756152616379,3.03705291,110620.0,110610.0,0.65055514]
[1756152616614,0.0040981,110620.0,110610.0,0.67316519]
[1756152616854,0.0014776,110620.0,110610.0,0.83137061]
[1756152617034,0.0014776,110620.0,110610.0,1.05377963]
[1756152617289,0.0024776,110620.0,110610.0,0.68300416]
[1756152617509,0.5024776,110620.0,110610.0,0.50754874]
[1756152617728,0.0034776,110620.0,110610.0,0.99756421]
[1756152618163,0.0034776,110620.0,110610.0,0.79236421]
[1756152618388,0.0024776,110620.0,110610.0,0.60754874]
[1756152618611,3.0218986,110620.0,110610.0,0.78073972]
[1756152618831,3.03904934,110620.0,110610.0,0.80373972]
[1756152619052,0.01762834,110620.0,110610.0,1.78806553]
[1756152619300,0.01762834,110620.0,110610.0,0.61554874]
[1756152619540,3.21884847,110620.0,110610.0,0.21809972]
[1756152619769,3.21884847,110620.0,110610.0,0.20009972]
[1756152619770,3.55997847,110620.0,110610.0,0.20009972]
[1756152620211,3.59347552,110620.0,110610.0,0.20009972]
[1756152620431,3.63604124,110620.0,110610.0,0.22009972]
[1756152620875,3.43597624,110620.0,110610.0,1e-08]
[1756152621100,3.62460722,110620.0,110610.0,0.00500001]
[1756152621327,3.57089076,110620.0,110610.0,0.00500001]
[1756152621554,3.57089076,110620.0,110610.0,1e-08]
[1756152621555,3.64045076,110620.0,110610.0,1e-08]
[1756152621777,0.53826449,110610.0,110600.0,2.03191777]
[1756152621997,3.37677883,110610.0,110600.0,1.36779075]
[1756152622218,3.35820981,110610.0,110600.0,1.36779075]
[1756152622679,3.01823536,110610.0,110600.0,1.36779075]
[1756152622907,3.34213747,110610.0,110600.0,1.36779075]
[1756152623129,3.02935047,110610.0,110600.0,1.36779075]
[1756152623391,3.02935047,110610.0,110600.0,1.37104075]
[1756152623392,2.848535,110610.0,110600.0,1.37104075]
[1756152623629,0.023963,110610.0,110600.0,1.74604075]
[1756152623866,0.0004776,110620.0,110610.0,0.375]
[1756152624102,2.8217996,110620.0,110610.0,0.58104]
[1756152624329,0.0004776,110620.0,110610.0,0.78255449]
[1756152624555,0.23519242,110670.0,110610.0,0.78255449]
[1756152624556,0.1807768,110670.0,110660.0,0.275]
[1756152624784,2.821322,110670.0,110660.0,0.57624]
[1756152625013,0.20791244,110670.0,110650.0,0.06956]
[1756152625242,3.321322,110660.0,110650.0,0.64572]
[1756152625429,3.34205577,110660.0,110650.0,0.37572]
[1756152625674,3.00205577,110660.0,110650.0,0.06856]
[1756152625924,2.821322,110660.0,110650.0,0.43979]
[1756152626141,0.18075011,110650.0,110640.0,0.27]
[1756152626389,0.18078278,110630.0,110620.0,0.06956]
[1756152626605,1.02079913,110620.0,110600.0,1.46679075]
[1756152626823,3.34213747,110610.0,110600.0,1.94720075]
[1756152627046,3.34213747,110610.0,110600.0,1.36749075]
[1756152627267,3.02131525,110610.0,110600.0,1.36749075]
[1756152627495,3.02131525,110610.0,110600.0,0.92440137]
[1756152627715,3.30281269,110610.0,110600.0,0.4258144]
[1756152627932,3.09525269,110610.0,110600.0,0.41675221]
[1756152628150,3.07780367,110610.0,110600.0,0.41002045]
[1756152628366,3.28540367,110610.0,110600.0,0.0879972]
[1756152628585,0.18083182,110600.0,110590.0,0.00916595]
[1756152628803,3.0183616,110600.0,110590.0,0.00916595]
[1756152629460,3.3583616,110600.0,110590.0,0.00916595]
[1756152629734,3.3613316,110600.0,110590.0,0.00916595]
[1756152629950,3.4591056,110600.0,110590.0,0.00029782]
[1756152630162,3.6694656,110600.0,110590.0,0.00129782]
[1756152630383,3.6658556,110600.0,110590.0,0.00129782]
[1756152630598,3.6657756,110600.0,110590.0,0.00129782]
[1756152630817,3.5961356,110600.0,110590.0,0.00129782]
[1756152631034,3.3885756,110600.0,110590.0,0.00129782]
[1756152631254,3.37633782,110600.0,110590.0,0.00129782]
[1756152631471,3.3866068,110600.0,110590.0,0.00029782]
[1756152631700,3.2540868,110600.0,110590.0,0.00029782]
[1756152631915,3.6000568,110600.0,110590.0,0.00129782]
[1756152632126,3.3896068,110600.0,110590.0,0.00029782]
[1756152632564,3.0496068,110600.0,110590.0,0.00352782]
[1756152632786,3.0496068,110600.0,110590.0,0.37452782]
[1756152632787,3.0506068,110600.0,110590.0,0.37452782]
[1756152633005,3.0496068,110600.0,110590.0,0.37452782]
[1756152633226,3.0496068,110600.0,110590.0,0.00229782]
[1756152633485,3.0233928,110600.0,110590.0,0.00229782]
[1756152633700,3.3593928,110600.0,110590.0,0.00029782]
[1756152633918,3.3583928,110600.0,110590.0,0.00029782]
[1756152634367,3.3856008,110600.0,110590.0,0.00029782]
[1756152634836,3.3856008,110600.0,110590.0,0.00529782]
[1756152634837,3.3866008,110600.0,110590.0,0.00529782]
[1756152635050,3.6037208,110600.0,110590.0,0.00529782]
[1756152635265,3.3866008,110600.0,110590.0,0.00529782]
[1756152635516,3.3866008,110600.0,110590.0,0.10752782]
[1756152635778,3.3956008,110600.0,110590.0,0.00529782]
[1756152636044,3.40075794,110600.0,110590.0,0.00529782]
[1756152636335,0.02436612,110600.0,110590.0,0.39637684]
[1756152636589,0.03436612,110600.0,110590.0,1.03810976]
[1756152636826,0.001,110600.0,110590.0,1.18810976]
[1756152637073,0.0004776,110610.0,110600.0,0.66728084]
[1756152637314,0.0004776,110610.0,110600.0,0.82637101]
[1756152637556,0.0004776,110610.0,110600.0,0.82537101]
[1756152637793,0.0004776,110610.0,110600.0,2.01356728]
[1756152638034,0.0004776,110610.0,110600.0,1.86356728]
[1756152638215,0.0004776,110610.0,110600.0,2.01156728]
[1756152638462,0.0004776,110610.0,110600.0,0.97337101]
[1756152638686,0.0024776,110610.0,110600.0,2.02156728]
[1756152639125,0.0004776,110610.0,110600.0,2.01156728]
[1756152639316,0.0004776,110610.0,110600.0,1.86156728]
[1756152639573,0.0034776,110610.0,110600.0,2.03056728]
[1756152639787,0.0034776,110610.0,110600.0,0.76016559]
[1756152639788,0.0014776,110610.0,110600.0,0.76016559]
[1756152640004,0.0014776,110610.0,110600.0,0.47933377]
[1756152640215,0.0014776,110610.0,110600.0,0.87928084]
[1756152640438,0.0024776,110610.0,110600.0,0.88728084]
[1756152640658,0.0014776,110610.0,110600.0,0.32724902]
[1756152640880,0.0014776,110610.0,110600.0,0.30968]
[1756152641564,0.0014776,110610.0,110600.0,0.32712902]
[1756152641785,0.0014776,110610.0,110600.0,0.78896084]
[1756152641786,0.0024776,110610.0,110600.0,0.78896084]
[1756152642226,0.0014776,110610.0,110600.0,0.32984902]
[1756152642486,0.0034776,110610.0,110600.0,0.61184902]
[1756152642706,0.0034776,110610.0,110600.0,0.119]
[1756152642952,0.18129307,110610.0,110600.0,0.57128]
[1756152643175,3.00136507,110610.0,110600.0,0.58128]
[1756152643625,3.00036507,110610.0,110600.0,0.58028]
[1756152643839,3.00136507,110610.0,110600.0,0.31904]
[1756152644049,3.00333507,110610.0,110600.0,0.279]
[1756152644264,3.00333507,110610.0,110600.0,0.105]
[1756152644477,3.00433507,110610.0,110600.0,0.38]
[1756152644689,3.00433507,110610.0,110600.0,0.11]
[1756152644907,3.00333507,110610.0,110600.0,0.105]
[1756152645123,3.00233507,110610.0,110600.0,0.366]
[1756152645335,2.99936507,110610.0,110600.0,0.57068]
[1756152645558,3.00136507,110610.0,110600.0,0.57668]
[1756152645769,3.34136507,110610.0,110600.0,0.57068]
[1756152646188,2.8225496,110610.0,110600.0,0.57668]
[1756152646410,0.0004776,110610.0,110600.0,0.58812902]
[1756152646630,0.68129307,110610.0,110600.0,0.58812902]
[1756152646876,3.00236507,110610.0,110600.0,0.60112902]
[1756152647100,0.0034776,110610.0,110600.0,0.60112902]
[1756152647317,0.0034776,110610.0,110600.0,0.78196084]
[1756152647529,0.0034776,110610.0,110600.0,1.09940084]
[1756152647747,0.0034776,110610.0,110600.0,0.61388902]
[1756152647980,0.0034776,110610.0,110600.0,0.59644]
[1756152647981,0.18429307,110610.0,110600.0,0.59644]
[1756152648200,0.01979458,110610.0,110600.0,0.80012]
[1756152648415,0.01979458,110610.0,110600.0,0.81156902]
[1756152648416,0.01879458,110610.0,110600.0,0.81156902]
[1756152648632,0.01679458,110610.0,110600.0,0.80456902]
[1756152648907,0.69861005,110610.0,110600.0,0.33788902]
[1756152649117,3.01868205,110610.0,110600.0,0.54752902]
[1756152649330,0.20061005,110610.0,110600.0,0.54152902]
[1756152649749,0.20261005,110610.0,110600.0,0.58144]
[1756152649964,0.19961005,110610.0,110600.0,0.56944]
[1756152650211,0.18429307,110610.0,110600.0,0.30944]
[1756152650421,0.20261406,110610.0,110600.0,0.376]
[1756152650670,3.36265606,110610.0,110600.0,0.101]
[1756152650889,3.34633507,110610.0,110600.0,0.304]
[1756152651106,3.37681143,110610.0,110600.0,0.304]
[1756152651324,0.18083182,110600.0,110590.0,0.27029782]
[1756152651543,2.51522599,110600.0,110590.0,0.47317782]
[1756152651756,2.35819599,110600.0,110590.0,0.47317782]
[1756152652638,2.35819599,110600.0,110590.0,0.47269782]
[1756152653066,2.35919599,110600.0,110590.0,0.20569782]
[1756152653494,2.34287382,110600.0,110590.0,0.20569782]
[1756152653708,2.35920624,110600.0,110590.0,0.20569782]
[1756152653938,2.35920624,110600.0,110590.0,0.00329782]
[1756152654367,2.56108624,110600.0,110590.0,0.00329782]
[1756152654799,2.56108624,110600.0,110590.0,0.00629782]
[1756152655274,2.56008624,110600.0,110590.0,0.00029782]
[1756152655497,2.37801327,110600.0,110590.0,0.00129782]
[1756152655713,2.57973327,110600.0,110590.0,0.00129782]
[1756152655932,2.64829327,110600.0,110590.0,0.00029782]
[1756152656136,2.64829327,110600.0,110590.0,0.00129782]
[1756152656344,2.65129327,110600.0,110590.0,0.00129782]
[1756152656614,2.65441689,110600.0,110590.0,0.00029782]
[1756152656825,2.65841689,110600.0,110590.0,0.00129782]
[1756152657039,2.69004647,110600.0,110590.0,0.00129782]
[1756152657256,2.69004647,110600.0,110590.0,0.00229782]
[1756152657690,2.69004647,110600.0,110590.0,0.00129782]
[1756152657907,2.79204647,110600.0,110590.0,0.00129782]
[1756152658130,2.78804647,110600.0,110590.0,0.00029782]
[1756152658354,2.78732647,110600.0,110590.0,0.00029782]
[1756152658569,2.79132647,110600.0,110590.0,0.00129782]
[1756152659006,3.08530983,110600.0,110590.0,0.00129782]
[1756152659229,2.90777549,110600.0,110590.0,0.00129782]
[1756152659445,3.10841549,110600.0,110590.0,0.00129782]
[1756152659668,3.09412795,110600.0,110590.0,0.00129782]
[1756152659890,0.63829719,110590.0,110580.0,0.01]
[1756152660138,5.7193244,110590.0,110580.0,0.01]
[1756152660372,5.92311915,110590.0,110580.0,0.01]
[1756152660596,0.94628456,110590.0,110580.0,0.01]
[1756152660839,0.93744261,110590.0,110580.0,0.01]
[1756152661057,0.94240261,110590.0,110580.0,0.01]
[1756152661270,0.96532682,110590.0,110580.0,0.01]
[1756152661491,0.96632682,110590.0,110580.0,0.01]
[1756152661716,1.03853224,110590.0,110580.0,0.01]
[1756152661940,0.94331355,110580.0,110570.0,0.00043147]
[1756152662365,1.10933694,110580.0,110570.0,0.00043147]
[1756152662367,1.16759065,110580.0,110570.0,0.00043147]
[1756152662607,1.14610092,110580.0,110570.0,0.00043147]
[1756152662861,1.33793264,110580.0,110570.0,0.00043147]
[1756152663093,0.7386899,110570.0,110560.0,0.2]
[1756152663342,0.95260423,110570.0,110560.0,0.2]
[1756152663561,1.11503749,110570.0,110560.0,0.2]
[1756152663777,1.13652722,110570.0,110560.0,0.2]
[1756152663991,0.94334627,110560.0,110550.0,0.05904163]
[1756152664256,1.02515393,110560.0,110550.0,0.05904163]
[1756152664469,1.12099094,110560.0,110550.0,0.05904163]
[1756152664706,0.82177531,110560.0,110550.0,0.05904163]
[1756152664930,2.60547497,110560.0,110550.0,0.05904163]
[1756152665158,2.31003497,110560.0,110550.0,0.05904163]
[1756152665410,0.92654727,110560.0,110550.0,0.05904163]
[1756152665618,1.27154727,110560.0,110550.0,0.06004163]
[1756152665859,1.3014072,110560.0,110550.0,0.06004163]
[1756152666106,0.64336263,110550.0,110520.0,0.02543705]
[1756152666331,1.02891495,110550.0,110520.0,0.02543705]
[1756152666543,1.12501414,110550.0,110520.0,0.02543705]
[1756152666754,0.92441414,110550.0,110520.0,0.02543705]
[1756152666970,2.4879933,110550.0,110520.0,0.02543705]
[1756152667188,1.14025948,110550.0,110520.0,0.02543705]
[1756152667412,1.14834674,110550.0,110520.0,0.02543705]
[1756152667631,0.93961948,110550.0,110520.0,0.02543705]
[1756152667857,1.12578987,110550.0,110520.0,0.02543705]
[1756152668078,0.94759354,110550.0,110520.0,0.02543705]
[1756152668290,1.12564236,110550.0,110520.0,0.02543705]
[1756152668532,1.11756154,110550.0,110540.0,0.0012]
[1756152668752,2.67650654,110550.0,110540.0,0.0012]
[1756152668980,2.82650654,110550.0,110540.0,0.0012]
[1756152669214,2.84358444,110550.0,110540.0,0.0012]
[1756152669447,0.97166008,110550.0,110540.0,0.0012]
[1756152669685,1.91628844,110550.0,110540.0,0.00417]
[1756152669910,1.77053408,110550.0,110540.0,0.00417]
[1756152670134,1.9937431,110550.0,110540.0,0.0012]
[1756152670361,1.97233408,110550.0,110540.0,0.0002]
[1756152670582,1.80816371,110550.0,110540.0,0.0002]
[1756152670801,1.80416371,110550.0,110540.0,0.0002]
[1756152671028,1.80516371,110550.0,110540.0,0.00317]
[1756152671274,1.50436589,110550.0,110540.0,0.00317]
[1756152671488,1.49936589,110550.0,110540.0,0.00317]
[1756152671924,1.50136589,110550.0,110540.0,0.00317]
[1756152672150,1.49836589,110550.0,110540.0,0.00317]
[1756152672645,1.84036589,110550.0,110540.0,0.0002]
[1756152672860,1.84845302,110550.0,110540.0,0.0002]
[1756152673077,1.84036589,110550.0,110540.0,0.0002]
[1756152673298,1.84845228,110550.0,110540.0,0.0002]
[1756152673511,1.86708569,110550.0,110540.0,0.0002]
[1756152673743,1.84036589,110550.0,110540.0,0.0002]
[1756152673955,1.84036589,110550.0,110540.0,0.00317]
[1756152674170,1.84036589,110550.0,110540.0,0.0002]
[1756152674601,1.96859389,110550.0,110540.0,0.0002]
[1756152674818,0.761787,110550.0,110540.0,0.0002]
[1756152675046,0.68839275,110540.0,110520.0,0.02543705]
[1756152675270,0.91091208,110540.0,110520.0,0.02543705]
[1756152675519,0.88765281,110540.0,110520.0,0.02543705]
[1756152675741,0.52094634,110530.0,110520.0,0.02543705]
[1756152675957,0.52094634,110530.0,110510.0,0.21473043]
[1756152675958,0.52096272,110520.0,110510.0,0.21473043]
[1756152676173,1.071607,110520.0,110510.0,0.20009992]
[1756152676406,1.141247,110520.0,110510.0,0.20009992]
[1756152676628,1.54114286,110520.0,110510.0,0.20009992]
[1756152676862,1.29964112,110520.0,110510.0,0.20009992]
[1756152677087,1.24659729,110520.0,110510.0,0.20009992]
[1756152677313,6.07283016,110520.0,110510.0,0.20009992]
[1756152677545,5.85359712,110520.0,110510.0,0.20306992]
[1756152677777,5.82890703,110520.0,110510.0,0.20009992]
[1756152678002,5.89554867,110520.0,110510.0,0.20009992]
[1756152678221,5.89554867,110520.0,110510.0,0.20013992]
[1756152678222,5.67061965,110520.0,110510.0,0.20013992]
[1756152678447,5.5321268,110520.0,110510.0,0.20310992]
[1756152678672,5.4614868,110520.0,110510.0,0.20414992]
[1756152678887,5.4614868,110520.0,110510.0,0.20418992]
[1756152679116,5.21154855,110520.0,110510.0,0.30422992]
[1756152679345,5.03383583,110520.0,110510.0,0.57926992]
[1756152679582,0.02408583,110520.0,110510.0,0.85903534]
[1756152679803,0.00347672,110520.0,110510.0,0.85903534]
[1756152680018,0.00247672,110520.0,110510.0,0.65047534]
[1756152680467,0.00347672,110520.0,110510.0,2.01418538]
[1756152680736,0.18137331,110600.0,110510.0,2.01418538]
[1756152680737,0.027218,110590.0,110580.0,0.275]
[1756152680947,0.68086453,110580.0,110570.0,0.375]
[1756152681166,5.19710285,110580.0,110570.0,0.375]
[1756152681386,5.19710285,110580.0,110560.0,0.37]
[1756152681387,0.18088088,110570.0,110560.0,0.37]
[1756152681616,0.45382623,110600.0,110590.0,0.27]
[1756152681617,0.00044668,110600.0,110590.0,0.27]
[1756152681848,0.00044668,110600.0,110580.0,0.1]
[1756152681849,0.68084817,110590.0,110580.0,0.1]
[1756152682075,0.68084817,110590.0,110570.0,0.269]
[1756152682076,1.02086453,110580.0,110570.0,0.269]
[1756152682301,0.18089725,110560.0,110550.0,0.369]
[1756152682528,0.52092998,110540.0,110530.0,0.1]
[1756152682763,0.52092998,110540.0,110520.0,0.369]
[1756152682764,0.18095923,110530.0,110520.0,0.369]
[1756152682970,5.01625104,110530.0,110520.0,0.369]
[1756152683410,5.01625104,110530.0,110520.0,0.1]
[1756152683634,5.01625104,110530.0,110520.0,0.369]
[1756152684082,5.01625104,110530.0,110520.0,0.36914433]
[1756152684314,5.19719738,110530.0,110520.0,0.10014433]
[1756152684541,5.23880285,110530.0,110520.0,0.10014433]
[1756152684760,0.18096272,110520.0,110510.0,0.20029992]
[1756152684976,0.18096272,110520.0,110510.0,0.19123256]
[1756152684977,5.71408818,110520.0,110510.0,0.19123256]
[1756152685419,5.64176276,110520.0,110510.0,0.18234021]
[1756152685644,5.68723068,110520.0,110510.0,0.14371762]
[1756152685904,5.43951915,110520.0,110510.0,0.13465026]
[1756152686121,5.45013807,110520.0,110510.0,0.13465026]
[1756152686340,5.45013807,110520.0,110510.0,0.23465026]
[1756152686341,5.25041004,110520.0,110510.0,0.23465026]
[1756152686557,4.91041004,110520.0,110510.0,0.50365026]
[1756152686782,4.91046431,110520.0,110510.0,0.50365026]
[1756152687247,0.01630531,110520.0,110510.0,0.78317568]
[1756152687456,4.91046431,110520.0,110510.0,0.57329026]
[1756152687678,5.25046431,110520.0,110510.0,0.40365026]
[1756152687892,5.43142703,110520.0,110510.0,0.50365026]
[1756152688119,5.25046431,110520.0,110510.0,0.50365026]
[1756152688337,4.91046431,110520.0,110510.0,0.50365026]
[1756152688564,4.91146431,110520.0,110510.0,0.50465026]
[1756152688782,5.25146431,110520.0,110510.0,0.40465026]
[1756152689001,5.25146431,110520.0,110510.0,0.23665026]
[1756152689002,5.43442703,110520.0,110510.0,0.23665026]
[1756152689220,5.43442703,110520.0,110510.0,0.50565026]
[1756152689438,5.25346431,110520.0,110510.0,0.50465026]
[1756152689690,5.25346431,110520.0,110510.0,0.71209026]
[1756152689691,5.43442703,110520.0,110510.0,0.71209026]
[1756152689942,5.464479,110520.0,110510.0,0.12657935]
[1756152690173,5.47160002,110520.0,110510.0,0.12557935]
[1756152690401,5.28144628,110520.0,110510.0,0.22557935]
[1756152690628,5.28144628,110520.0,110510.0,0.22657935]
[1756152690629,5.463409,110520.0,110510.0,0.22657935]
[1756152690853,5.466479,110520.0,110510.0,0.11750844]
[1756152691102,5.28756844,110520.0,110510.0,0.21650844]
[1756152691327,5.47964804,110520.0,110510.0,0.10633753]
[1756152691559,5.48370094,110520.0,110510.0,0.20633753]
[1756152691784,5.47757804,110520.0,110510.0,0.20633753]
[1756152692012,5.47657804,110520.0,110510.0,0.20633753]
[1756152692236,5.48577021,110520.0,110510.0,0.10633753]
[1756152692500,5.46760117,110520.0,110510.0,0.10633753]
[1756152692739,5.46760111,110520.0,110510.0,0.10633753]
[1756152692961,5.46760111,110520.0,110510.0,0.09726662]
[1756152692962,5.46960111,110520.0,110510.0,0.09726662]
[1756152693190,5.56604073,110520.0,110510.0,0.06551843]
[1756152693414,0.53842811,110510.0,110500.0,0.22468472]
[1756152693640,0.53842811,110510.0,110500.0,0.22516144]
[1756152693641,5.4850665,110510.0,110500.0,0.22516144]
[1756152693882,5.68842937,110510.0,110500.0,0.18434234]
[1756152694117,5.68842937,110510.0,110500.0,0.17181188]
[1756152694345,5.71168864,110510.0,110500.0,0.17181188]
[1756152694587,5.72913766,110510.0,110500.0,0.14869855]
[1756152694823,5.7882972,110510.0,110500.0,0.14569855]
[1756152695065,5.61905799,110510.0,110500.0,0.14569855]
[1756152695293,5.59103909,110510.0,110500.0,0.14569855]
[1756152695516,0.84197866,110510.0,110500.0,0.14769855]
[1756152695751,0.91863724,110510.0,110500.0,0.14769855]
[1756152695976,0.95297662,110510.0,110500.0,0.14769855]
[1756152696202,0.97059699,110510.0,110500.0,0.14769855]
[1756152696466,0.96859699,110510.0,110500.0,0.14769855]
[1756152696686,0.86402923,110510.0,110500.0,0.00434435]
[1756152696912,0.67699547,110500.0,110490.0,0.00030311]
[1756152697148,0.76076591,110500.0,110490.0,0.00030311]
[1756152697588,4.45464591,110500.0,110490.0,0.00030311]
[1756152697799,4.69414683,110500.0,110490.0,0.00030311]
[1756152698022,4.47097781,110500.0,110490.0,0.00030311]
[1756152698276,3.95864726,110500.0,110490.0,0.00030311]
[1756152698497,0.80547091,110500.0,110490.0,0.00030311]
[1756152698718,1.24112679,110500.0,110490.0,0.00030311]
[1756152698937,0.54446087,110490.0,110480.0,0.01]
[1756152699160,0.64984219,110490.0,110480.0,0.01]
[1756152699385,0.74467472,110490.0,110480.0,0.01]
[1756152699631,0.80766287,110490.0,110480.0,0.01]
[1756152699860,1.03557256,110490.0,110480.0,0.01]
[1756152700085,0.83847726,110480.0,110470.0,9e-05]
[1756152700377,1.07530255,110480.0,110470.0,9e-05]
[1756152700602,1.09680253,110480.0,110470.0,9e-05]
[1756152700832,1.35300815,110480.0,110470.0,9e-05]
[1756152701060,1.40815264,110480.0,110470.0,9e-05]
[1756152701309,1.61847736,110480.0,110470.0,9e-05]
[1756152701566,0.52104462,110470.0,110460.0,0.2]
[1756152701799,0.83091915,110470.0,110460.0,0.2]
[1756152702035,0.46750745,110470.0,110460.0,0.2]
[1756152702285,0.49664875,110470.0,110460.0,0.2]
[1756152702541,0.6285673,110470.0,110460.0,0.2]
[1756152702797,5.51004935,110470.0,110460.0,0.2]
[1756152703045,5.45311179,110470.0,110460.0,0.2]
[1756152703274,0.89504144,110470.0,110460.0,0.06618844]
[1756152703533,0.67107741,110450.0,110440.0,0.02889632]
[1756152703755,0.94524416,110450.0,110440.0,0.02889632]
[1756152703990,1.00116151,110450.0,110440.0,0.02889632]
[1756152704215,0.95410077,110450.0,110440.0,0.02889632]
[1756152704445,0.83312442,110450.0,110440.0,0.02889632]
[1756152704667,0.80193077,110450.0,110440.0,0.02889632]
[1756152704886,0.88908239,110450.0,110440.0,0.02889632]
[1756152705098,0.83533504,110450.0,110440.0,0.02889632]
[1756152705317,0.81119941,110450.0,110440.0,0.02889632]
[1756152705533,0.62782902,110450.0,110440.0,0.02889632]
[1756152705747,0.83337902,110450.0,110440.0,0.02889632]
[1756152705978,0.86064302,110450.0,110440.0,0.02889632]
[1756152706191,0.8795199,110450.0,110440.0,0.02889632]
[1756152706410,4.37312157,110450.0,110440.0,0.02889632]
[1756152706675,4.53508389,110450.0,110440.0,0.02889632]
[1756152706893,4.52901019,110450.0,110440.0,0.02889632]
[1756152707334,4.52701019,110450.0,110440.0,0.02889632]
[1756152707555,4.50820925,110450.0,110440.0,0.03194632]
[1756152707780,4.50550546,110450.0,110440.0,0.03194632]
[1756152708055,4.50550546,110450.0,110440.0,0.40694632]
[1756152708056,4.08162469,110450.0,110440.0,0.40694632]
[1756152708267,4.2607021,110450.0,110440.0,0.13194632]
[1756152708480,4.45471995,110450.0,110440.0,0.02889632]
[1756152708703,4.79471995,110450.0,110440.0,0.02889632]
[1756152708921,4.80889961,110450.0,110440.0,0.02889632]
[1756152709144,4.83564811,110450.0,110440.0,0.02889632]
[1756152709360,4.88914682,110450.0,110440.0,0.02889632]
[1756152709580,4.84171689,110450.0,110440.0,0.02889632]
[1756152709795,0.79464089,110450.0,110440.0,0.02889632]
[1756152710003,0.86910523,110450.0,110440.0,0.02889632]
[1756152710218,0.84350022,110450.0,110440.0,0.02989632]
[1756152710650,0.84250022,110450.0,110440.0,0.02889632]
[1756152711094,0.86784227,110450.0,110440.0,0.02889632]
[1756152711318,0.89223019,110450.0,110440.0,0.02889632]
[1756152711541,0.89023019,110450.0,110440.0,0.02889632]
[1756152712021,0.69583192,110440.0,110420.0,0.06]
[1756152712238,4.97064966,110440.0,110420.0,0.06]
[1756152712458,3.4816822,110430.0,110420.0,0.06]
[1756152712678,3.53069602,110430.0,110420.0,0.06]
[1756152712892,3.595427,110430.0,110420.0,0.06]
[1756152713125,3.5848868,110430.0,110420.0,0.06]
[1756152713391,3.73616842,110430.0,110420.0,0.06]
[1756152713647,0.97562174,110430.0,110420.0,0.06]
[1756152713888,1.00971399,110430.0,110420.0,0.06]
[1756152714130,1.08191941,110430.0,110420.0,0.06]
[1756152714372,1.02013835,110430.0,110420.0,0.06]
[1756152714624,0.99483119,110430.0,110420.0,0.06]
[1756152714865,1.18536408,110430.0,110420.0,0.04561104]
[1756152715091,0.76990803,110420.0,110410.0,0.00019073]
[1756152715335,0.74706555,110420.0,110410.0,0.00019073]
[1756152715561,0.89706948,110420.0,110410.0,0.00019073]
[1756152715789,1.03279783,110420.0,110410.0,0.00019073]
[1756152716474,1.03279783,110420.0,110400.0,0.01400119]
[1756152716475,0.52114301,110410.0,110400.0,0.01400119]
[1756152716688,0.37674917,110410.0,110400.0,0.01400119]
[1756152716933,0.7579716,110410.0,110400.0,0.01400119]
[1756152717150,1.92369827,110410.0,110400.0,0.01400119]
[1756152717367,1.90040205,110410.0,110400.0,0.01400119]
[1756152717600,1.92369827,110410.0,110400.0,0.01400119]
[1756152717822,2.05807674,110410.0,110400.0,0.01400119]
[1756152718043,2.09019674,110410.0,110400.0,0.01400119]
[1756152718274,2.17821319,110410.0,110400.0,0.01400119]
[1756152718500,0.92357819,110410.0,110400.0,0.01400119]
[1756152718730,0.94732637,110410.0,110400.0,0.01400119]
[1756152718966,0.93958526,110410.0,110400.0,0.01400119]
[1756152719190,0.98029666,110410.0,110400.0,0.01400119]
[1756152719408,1.01463048,110410.0,110400.0,0.01400119]
[1756152719694,1.13394356,110410.0,110400.0,0.01400119]
[1756152719923,1.18825275,110410.0,110400.0,0.01400119]
[1756152720154,1.74820851,110410.0,110400.0,0.01400119]
[1756152720393,1.68310356,110410.0,110400.0,0.01400119]